fUST/lending_fUST_20251104
["ID","MTS","AMOUNT","RATE_DAILY","PERIOD"]
[393043461,1762241933553,500.0,0.00043835,120]
[393043462,1762241933616,500.0,0.00043835,120]
[393043463,1762241933732,250.0,0.00043836,30]
[393043464,1762241934529,250.0,0.00043836,30]
[393043465,1762241935142,270.40114866,0.00043836,30]
[393043466,1762241936588,500.0,0.00043835,120]
[393043467,1762241937675,500.0,0.00043835,120]
[393043468,1762241938362,500.0,0.00043835,120]
[393043469,1762241939503,502.77861516,0.00043835,120]
[393043470,1762241940014,500.0,0.00043835,120]
[393043471,1762241940172,500.0,0.00043835,120]
[393043472,1762241940308,500.0,0.00043835,120]
[393043473,1762241942160,500.0,0.00043835,120]
[393043474,1762241942797,502.31537108,0.00043835,120]
[393043475,1762241943496,500.0,0.00043835,120]
[393043476,1762241943650,500.0,0.00043835,120]
[393043477,1762241943716,506.99323924,0.00043835,120]
[393043478,1762241944477,500.0,0.00043835,120]
[393043479,1762241945638,1515.0,0.00043835,30]
[393043480,1762241945757,500.0,0.00043835,120]
[393043481,1762241946923,520.05093244,0.00043835,120]
[393043482,1762241947517,505.38764109,0.00043835,120]
[393043483,1762241947611,500.0,0.00043835,120]
[393043484,1762241949939,270.0,0.00035169,120]
[393043485,1762241950352,500.0,0.00043835,120]
[393043486,1762241950520,512.32989366,0.00043835,120]
[393043487,1762241951570,500.0,0.00043835,120]
[393043488,1762241952351,500.0,0.00043835,120]
[393043489,1762241952908,500.0,0.00043835,120]
[393043490,1762241953300,270.0,0.00037694,120]
[393043491,1762241954330,500.0,0.00043835,120]
[393043492,1762241954495,271.77540545,0.00043835,120]
[393043493,1762241954670,507.35885836,0.00043835,120]
[393043494,1762241956075,488.92413308,0.00043835,120]
[393043495,1762241956191,500.0,0.00043835,120]
[393043496,1762241957414,150.0,0.00043699,120]
[393043497,1762241958888,2000.0,0.0004383,30]
[393043498,1762241958948,500.0,0.00043835,120]
[393043499,1762241959041,505.39847072,0.00043835,120]
[393043500,1762241961399,505.41719501,0.00043835,120]
[393043501,1762241963491,500.0,0.00043835,120]
[393043502,1762241963554,500.0,0.00043835,120]
[393043503,1762241964045,500.0,0.00043835,120]
[393043504,1762241965148,501.45778891,0.00043835,120]
[393043505,1762241965342,500.0,0.00043835,120]
[393043506,1762241965896,506.86449399,0.00043835,120]
[393043507,1762241967732,500.0,0.00043835,120]
[393043508,1762241968291,504.79021504,0.00043835,120]
[393043509,1762241969118,500.0,0.00043835,120]
[393043510,1762241969750,504.45406656,0.00043835,120]
[393043511,1762241970540,500.0,0.00043835,120]
[393043512,1762241970941,504.42230925,0.00043835,120]
[393043513,1762241971288,500.0,0.00043835,120]
[393043514,1762241972909,862.55676114,0.0004,60]
[393043515,1762241973143,2000.0,0.0004383,30]
[393043516,1762241973788,500.0,0.00043835,120]
[393043517,1762241975262,500.0,0.00043835,120]
[393043518,1762241976724,505.82859672,0.00043835,120]
[393043519,1762241976987,287.09638628,0.00043835,120]
[393043520,1762241979676,264.96428405,0.00043835,120]
[393043521,1762241979790,500.0,0.00043835,120]
[393043522,1762241981053,500.0,0.00043835,120]
[393043523,1762241981833,505.17519777,0.00043835,120]
[393043524,1762241982019,500.0,0.00043835,120]
[393043525,1762241983653,507.27896379,0.00043835,120]
[393043526,1762241984370,500.0,0.00043835,120]
[393043527,1762241984509,500.0,0.00043835,120]
[393043528,1762241985532,509.86102837,0.00043835,120]
[393043529,1762241986731,500.0,0.00043835,120]
[393043530,1762241986971,2000.0,0.0004383,30]
[393043531,1762241987289,500.0,0.00043835,120]
[393043532,1762241988479,500.0,0.00043835,120]
[393043533,1762241989360,500.0,0.00043835,120]
[393043534,1762241993112,500.0,0.00043835,120]
[393043535,1762241993807,500.0,0.00043835,120]
[393043536,1762241996840,503.69766595,0.00043835,120]
[393043537,1762241998935,500.0,0.00043835,120]
[393043538,1762241999850,500.0,0.00043835,120]
[393043539,1762242000342,500.0,0.00043835,120]
[393043540,1762242000595,2000.0,0.0004383,30]
[393043541,1762242001130,500.0,0.00043835,120]
[393043542,1762242003391,510.92273298,0.00043835,120]
[393043543,1762242003915,500.0,0.00043835,120]
[393043544,1762242004482,500.0,0.00043835,120]
[393043545,1762242004621,500.0,0.00043835,120]
[393043571,1762242009615,500.0,0.00043835,120]
[393043572,1762242009686,501.25772896,0.00043835,120]
[393043573,1762242009755,538.44143347,0.00043835,120]
[393043591,1762242011785,500.0,0.00043835,120]
[393043593,1762242011882,500.0,0.00043835,120]
[393043594,1762242011962,500.0,0.00043835,120]
[393043596,1762242012034,183.75246199,0.00043836,30]
[393043598,1762242012379,470.50920686,0.00043835,120]
[393043609,1762242013573,503.64384904,0.00043835,120]
[393043611,1762242013728,500.0,0.00043835,120]
[393043619,1762242014524,2000.0,0.0004383,30]
[393043621,1762242014588,507.26016063,0.00043835,120]
[393043625,1762242015001,159.25406405,0.00043835,120]
[393043629,1762242015322,500.0,0.00043835,120]
[393043632,1762242015459,505.60967294,0.00043835,120]
[393043633,1762242015526,500.0,0.00043835,120]
[393043635,1762242015644,500.0,0.00043835,120]
[393043648,1762242016972,500.0,0.00043835,120]
[393043657,1762242017905,500.0,0.00043835,120]
[393043659,1762242017963,152.77812001,0.0004,60]
[393043662,1762242018274,500.0,0.00043835,120]
[393043664,1762242018361,500.0,0.00043835,120]
[393043667,1762242018563,500.0,0.00043835,120]
[393043671,1762242018994,509.14060866,0.00043835,120]
[393043688,1762242020750,500.0,0.00043835,120]
[393043689,1762242021076,500.0,0.00043835,120]
[393043697,1762242021872,500.0,0.00043835,120]
[393043699,1762242021945,500.0,0.00043835,120]
[393043700,1762242022004,426.71,0.000375,30]
[393043703,1762242022188,426.71,0.000397,30]
[393043705,1762242022250,500.0,0.00043835,120]
[393043706,1762242022307,500.0,0.00043835,120]
[393043713,1762242022996,500.0,0.00043835,120]
[393043717,1762242023277,500.0,0.00043835,120]
[393043724,1762242023978,500.0,0.00043835,120]
[393043728,1762242024363,276.98,0.00043835,120]
[393043744,1762242026137,500.0,0.00043835,120]
[393043746,1762242026200,500.0,0.00043835,120]
[393043747,1762242026264,500.0,0.00043835,120]
[393043758,1762242027425,504.53562084,0.00043835,120]
[393043766,1762242028200,500.0,0.00043835,120]
[393043769,1762242028411,2000.0,0.0004383,30]
[393043773,1762242028800,500.0,0.00043835,120]
[393043789,1762242030406,506.68942282,0.00043835,120]
[393043794,1762242030823,500.0,0.00043835,120]
[393043796,1762242030879,500.0,0.00043835,120]
[393043804,1762242031709,265.17226103,0.00041096,31]
[393043806,1762242031769,510.16692151,0.00043835,120]
[393043807,1762242031864,500.0,0.00043835,120]
[393043820,1762242033406,506.51561735,0.00043835,120]
[393043826,1762242033904,500.0,0.00043835,120]
[393043837,1762242035048,500.0,0.00043835,120]
[393043840,1762242035259,518.39798317,0.00043835,120]
[393043843,1762242035500,509.1242427,0.00043835,120]
[393043849,1762242036060,500.0,0.00043835,120]
[393043858,1762242036975,503.60823743,0.00043835,120]
[393043860,1762242037136,504.51667841,0.00043835,120]
[393043868,1762242037868,505.12636665,0.00043835,120]
[393043873,1762242038308,500.0,0.00043835,120]
[393043879,1762242038863,504.36621336,0.00043835,120]
[393043889,1762242039969,500.0,0.00043835,120]
[393043891,1762242040103,505.77495138,0.00043835,120]
[393043893,1762242040175,505.44973936,0.00043835,120]
[393043897,1762242040577,500.0,0.00043835,120]
[393043900,1762242040853,500.0,0.00043835,120]
[393043903,1762242041087,500.0,0.00043835,120]
[393043918,1762242042835,2000.0,0.0004383,30]
[393043920,1762242043009,503.39139526,0.00043835,120]
[393043924,1762242043594,500.0,0.00043835,120]
[393043925,1762242043666,500.0,0.00043835,120]
[393043932,1762242044344,508.53927168,0.00043835,120]
[393043934,1762242044462,504.6822749,0.00043835,120]
[393043941,1762242045152,500.0,0.00043835,120]
[393043945,1762242045500,500.0,0.00043835,120]
[393043948,1762242045802,500.0,0.00043835,120]
[393043964,1762242047404,504.37240055,0.00043835,120]
[393043971,1762242048034,500.0,0.00043835,120]
[393043978,1762242048751,501.3066766,0.00043835,120]
[393043983,1762242049154,500.0,0.00043835,120]
[393043987,1762242049432,500.0,0.00043835,120]
[393044000,1762242050817,500.0,0.00043835,120]
[393044022,1762242052933,503.66847093,0.00043835,120]
[393044024,1762242052988,508.6174207,0.00043835,120]
[393044028,1762242053302,500.0,0.00043835,120]
[393044038,1762242054540,507.7532519,0.00043835,120]
[393044044,1762242055154,500.0,0.00043835,120]
[393044047,1762242055372,500.0,0.00043835,120]
[393044053,1762242055939,500.0,0.00043835,120]
[393044056,1762242056154,500.0,0.00043835,120]
[393044058,1762242056261,2000.0,0.0004383,30]
[393044060,1762242056321,500.0,0.00043835,120]
[393044061,1762242056399,500.0,0.00043835,120]
[393044063,1762242056469,504.58557272,0.00043835,120]
[393044068,1762242057001,500.0,0.00043835,120]
[393044073,1762242057392,516.37516171,0.00043835,120]
[393044079,1762242057918,505.43827863,0.00043835,120]
[393044081,1762242058006,500.0,0.00043835,120]
[393044083,1762242058091,509.1473758,0.00043835,120]
[393044085,1762242058158,500.0,0.00043835,30]
[393044087,1762242058225,503.69019869,0.00043835,120]
[393044090,1762242058468,500.0,0.00043835,120]
[393044105,1762242059902,500.0,0.00043835,120]
[393044130,1762242062575,500.0,0.00043835,120]
[393044139,1762242063484,500.0,0.00043835,120]
[393044148,1762242064749,500.0,0.00043835,120]
[393044154,1762242065330,500.0,0.00043835,120]
[393044162,1762242066095,500.0,0.00043835,120]
[393044176,1762242067627,500.0,0.00043835,120]
[393044185,1762242068498,500.0,0.00043835,120]
[393044193,1762242069336,504.83671738,0.00043835,120]
[393044200,1762242069956,2000.0,0.0004383,30]
[393044203,1762242070210,589.59443066,0.00043835,120]
[393044211,1762242071013,500.0,0.00043835,120]
[393044218,1762242071686,504.63934683,0.00043835,120]
[393044231,1762242072891,500.0,0.00043835,120]
[393044232,1762242072953,503.21585202,0.00043835,120]
[393044240,1762242073711,500.0,0.00043835,120]
[393044244,1762242074026,508.50304082,0.00043835,120]
[393044250,1762242074562,500.0,0.00043835,120]
[393044255,1762242075083,775.19,0.00043835,120]
[393044269,1762242076637,500.0,0.00043835,120]
[393044271,1762242076764,500.0,0.00043835,120]
[393044273,1762242076822,500.0,0.00043835,120]
[393044289,1762242078480,500.0,0.00043835,120]
[393044299,1762242079418,500.0,0.00043835,120]
[393044307,1762242080259,500.0,0.00043835,120]
[393044312,1762242080680,500.0,0.00043835,120]
[393044314,1762242080800,507.76054257,0.00043835,120]
[393044319,1762242081244,500.0,0.00043835,120]
[393044333,1762242082615,505.56841468,0.00043835,120]
[393044342,1762242083561,500.0,0.00043835,120]
[393044344,1762242083628,2000.0,0.0004383,30]
[393044361,1762242085445,229.78199594,0.00043835,120]
[393044368,1762242086403,500.0,0.00043835,120]
[393044373,1762242086828,500.0,0.00043835,120]
[393044386,1762242088001,500.0,0.00043835,120]
[393044387,1762242088081,530.37549744,0.00043835,120]
[393044393,1762242088641,500.0,0.00043835,120]
[393044408,1762242090213,530.85194341,0.00043835,120]
[393044430,1762242092624,500.0,0.00043835,120]
[393044435,1762242093061,500.0,0.00043835,120]
[393044465,1762242096668,584.27354348,0.00043835,120]
[393044469,1762242097195,500.0,0.00043835,120]
[393044474,1762242097682,2000.0,0.0004383,30]
[393044479,1762242098172,500.0,0.00043835,120]
[393044481,1762242098279,500.0,0.00043835,120]
[393044504,1762242100757,500.0,0.00043835,120]
[393044514,1762242101838,500.0,0.00043835,120]
[393044522,1762242102622,500.0,0.00043835,120]
[393044528,1762242103200,513.00269728,0.00043835,120]
[393044533,1762242103590,500.0,0.00043835,120]
[393044548,1762242105226,159.17756401,0.00043835,120]
[393044558,1762242106290,500.0,0.00043835,120]
[393044563,1762242106750,500.0,0.00043835,120]
[393044579,1762242108670,1424.54,0.00043835,120]
[393044588,1762242109700,500.0,0.00043835,120]
[393044595,1762242110355,421.22801372,0.00043835,120]
[393044597,1762242110449,500.0,0.00043835,120]
[393044598,1762242110506,1000.0,0.00043,120]
[393044601,1762242110704,506.58225292,0.00043835,120]
[393044604,1762242110929,509.10116604,0.00043835,120]
[393044609,1762242111345,2000.0,0.0004383,30]
[393044617,1762242112086,500.0,0.00043835,120]
[393044619,1762242112229,538.38686001,0.00043835,120]
[393044626,1762242112932,507.75391618,0.00043835,120]
[393044638,1762242114140,299.06140959,0.00043835,120]
[393044645,1762242114787,500.0,0.00043835,120]
[393044656,1762242115968,219.88191748,0.00043835,120]
[393044659,1762242116267,516.17066358,0.00043835,120]
[393044666,1762242116937,500.0,0.00043835,120]
[393044680,1762242118379,511.74786623,0.00043835,120]
[393044683,1762242118805,500.0,0.00043835,60]
[393044697,1762242120407,500.0,0.00043835,120]
[393044699,1762242120497,535.53147625,0.00043835,120]
[393044715,1762242122194,554.02836961,0.00043835,120]
[393044717,1762242122311,503.58579191,0.00043835,120]
[393044722,1762242122781,500.0,0.00043835,120]
[393044728,1762242123355,500.0,0.00043835,120]
[393044736,1762242124225,507.69183362,0.00043835,30]
[393044750,1762242125749,237.58315532,0.0004383,30]
[393044761,1762242126895,500.0,0.00043835,120]
[393044768,1762242127637,503.33011165,0.00043835,120]
[393044773,1762242128055,500.0,0.00043835,120]
[393044777,1762242128394,500.0,0.00043835,120]
[393044783,1762242129075,500.0,0.00043835,120]
[393044792,1762242130246,500.0,0.00043835,120]
[393044798,1762242130818,500.0,0.00043835,120]
[393044799,1762242130898,500.0,0.00043835,120]
[393044801,1762242131000,390.77105599,0.00043835,120]
[393044815,1762242132500,500.0,0.00043835,120]
[393044829,1762242133943,508.66370635,0.00043835,120]
[393044835,1762242134459,500.0,0.00043835,120]
[393044846,1762242135723,514.28414062,0.00043835,120]
[393044849,1762242135926,500.0,0.00043835,120]
[393044855,1762242136495,500.0,0.00043835,120]
[393044870,1762242138102,505.43330105,0.00043835,120]
[393044878,1762242138926,630.5305188,0.00043835,120]
[393044880,1762242138987,500.0,0.00043835,120]
[393044886,1762242139510,500.0,0.00043835,120]
[393044887,1762242139570,1000.0,0.00043,30]
[393044896,1762242140468,518.89099034,0.00043835,120]
[393044898,1762242140606,526.90714092,0.00043835,120]
[393044903,1762242141306,500.0,0.00043835,120]
[393044916,1762242142701,505.6377167,0.00043835,120]
[393044936,1762242144907,500.0,0.00043835,120]
[393044945,1762242145792,634.97736944,0.00043835,120]
[393044946,1762242145855,500.0,0.00043835,120]
[393044956,1762242146886,507.22417267,0.00043835,120]
[393044963,1762242147535,500.0,0.00043835,120]
[393044974,1762242148772,500.0,0.00043835,120]
[393044978,1762242149098,500.0,0.00043835,120]
[393044983,1762242149586,500.0,0.00043835,120]
[393044996,1762242150840,500.0,0.00043835,120]
[393044998,1762242150924,608.87942371,0.00043835,120]
[393045002,1762242151260,500.0,0.00043835,120]
[393045006,1762242151696,500.0,0.00043835,120]
[393045011,1762242152408,500.0,0.00043835,120]
[393045014,1762242152537,185.62058272,0.00041096,31]
[393045022,1762242153370,500.0,0.00037381,30]
[393045040,1762242155355,500.0,0.00043835,120]
[393045044,1762242155720,503.39482174,0.00043835,120]
[393045047,1762242155905,500.0,0.00043835,120]
[393045050,1762242156168,500.0,0.00043835,30]
[393045053,1762242156395,500.0,0.00043835,120]
[393045062,1762242157370,502.7,0.00043835,120]
[393045065,1762242157608,500.0,0.00043835,120]
[393045068,1762242157835,341.36,0.000365,30]
[393045072,1762242158145,341.36,0.000389,30]
[393045074,1762242158207,500.0,0.00043835,120]
[393045077,1762242158460,341.36,0.000416,30]
[393045084,1762242159284,515.87824195,0.00043835,120]
[393045090,1762242159879,500.0,0.00043835,120]
[393045103,1762242161242,510.76100911,0.00043835,120]
[393045114,1762242162394,500.0,0.00043835,120]
[393045117,1762242162604,507.09839858,0.00043835,120]
[393045121,1762242162989,510.43401062,0.00043835,120]
[393045125,1762242163599,500.0,0.00043835,120]
[393045132,1762242164442,637.14125845,0.00043835,120]
[393045139,1762242165119,500.0,0.00043835,120]
[393045152,1762242166740,517.11911742,0.00043835,120]
[393045157,1762242167111,500.0,0.00043835,120]
[393045166,1762242167892,505.30016987,0.00043835,120]
[393045168,1762242168003,500.0,0.00043835,45]
[393045194,1762242170914,500.0,0.00043835,120]
[393045195,1762242170979,500.0,0.00043835,120]
[393045201,1762242171509,199.65913279,0.00043835,120]
[393045203,1762242171603,523.04952961,0.00043835,120]
[393045207,1762242172008,500.0,0.00043835,120]
[393045210,1762242172282,216.0,0.00036285,120]
[393045231,1762242174902,504.02672257,0.00043835,120]
[393045237,1762242175467,515.80213069,0.00043835,120]
[393045239,1762242175535,500.0,0.00043835,120]
[393045242,1762242175864,616.79479988,0.00043835,120]
[393045243,1762242175937,513.84572075,0.00043835,120]
[393045254,1762242177148,500.0,0.00043835,120]
[393045258,1762242177533,500.0,0.00043835,120]
[393045267,1762242178459,500.0,0.00043835,120]
[393045271,1762242178899,534.49134362,0.00043835,30]
[393045275,1762242179278,500.0,0.00043835,120]
[393045277,1762242179340,500.0,0.00043835,120]
[393045281,1762242179681,506.00958307,0.00043835,120]
[393045291,1762242180859,534.67451091,0.00043835,120]
[393045298,1762242181537,500.0,0.00043835,120]
[393045301,1762242182180,509.54515427,0.00043835,120]
[393045302,1762242184444,516.47837238,0.00043835,120]
[393045303,1762242184570,607.49598566,0.00043835,120]
[393045304,1762242184871,508.44434084,0.00043835,120]
[393045305,1762242185653,500.0,0.00043835,120]
[393045306,1762242186467,467.23347304,0.00043835,120]
[393045307,1762242186774,592.63721121,0.00043835,120]
[393045308,1762242187643,507.37077435,0.00043835,120]
[393045309,1762242188371,516.74693354,0.00043835,120]
[393045310,1762242188555,506.86791034,0.00043835,120]
[393045311,1762242189662,500.0,0.00043835,120]
[393045312,1762242190269,500.0,0.00043835,120]
[393045313,1762242190417,305.50977662,0.00043835,120]
[393045314,1762242193975,500.0,0.00043835,120]
[393045315,1762242194108,513.33855417,0.00043835,120]
[393045316,1762242194175,500.0,0.00043835,120]
[393045317,1762242194598,523.13,0.00043835,120]
[393045318,1762242197748,554.10892707,0.00043835,120]
[393045319,1762242198369,500.0,0.00043835,120]
[393045320,1762242199538,509.20649172,0.00043835,120]
[393045321,1762242200239,500.0,0.00043835,120]
[393045322,1762242200353,508.70389132,0.00043835,120]
[393045323,1762242201318,509.22546686,0.00043835,120]
[393045325,1762242203516,505.40075191,0.00043835,120]
[393045326,1762242205327,333.69844672,0.00043835,120]
[393045327,1762242205571,500.0,0.00043835,120]
[393045328,1762242205759,530.01762943,0.00043835,120]
[393045329,1762242206206,500.0,0.00043835,120]
[393045330,1762242207778,3270.0,0.00037318,30]
[393045331,1762242208257,500.0,0.00043835,120]
[393045332,1762242208950,500.0,0.00043835,120]
[393045334,1762242210880,500.0,0.00043835,120]
[393045335,1762242214684,500.0,0.00043835,120]
[393045336,1762242215692,500.0,0.00043835,120]
[393045337,1762242217146,568.72927981,0.00043835,120]
[393045338,1762242217590,500.0,0.00043835,120]
[393045339,1762242217706,500.0,0.00043835,120]
[393045340,1762242218776,500.0,0.00043835,120]
[393045341,1762242220769,531.0176121,0.00043835,120]
[393045342,1762242221397,500.0,0.00043835,120]
[393045343,1762242221809,527.7188869,0.00043835,120]
[393045344,1762242222714,543.19395322,0.00043835,120]
[393045354,1762242224397,500.0,0.00043835,120]
[393045465,1762242238316,500.0,0.00043835,120]
[393045468,1762242238524,500.0,0.00043835,120]
[393045486,1762242240522,500.0,0.00043835,120]
[393045488,1762242240635,500.0,0.00043835,120]
[393045501,1762242242026,543.524459,0.00043835,120]
[393045517,1762242243851,500.0,0.00043835,120]
[393045519,1762242243956,500.0,0.00043835,120]
[393045532,1762242245409,500.0,0.00043835,120]
[393045535,1762242245613,500.0,0.00043835,120]
[393045552,1762242247483,1000.0,0.00043,30]
[393045559,1762242248174,3584.0,0.00032877,120]
[393045564,1762242248678,502.73283335,0.00043835,120]
[393045566,1762242248767,500.0,0.00043835,120]
[393045567,1762242248921,500.0,0.00043835,120]
[393045570,1762242251192,500.0,0.00043835,120]
[393045571,1762242251691,500.0,0.00043835,120]
[393045572,1762242252205,500.0,0.00043835,120]
[393045573,1762242255780,530.52470693,0.00043835,120]
[393045574,1762242256540,500.0,0.00043835,120]
[393045575,1762242257032,500.0,0.00043835,120]
[393045576,1762242258035,1000.0,0.00043,120]
[393045577,1762242258157,500.0,0.00043835,120]
[393045578,1762242260336,500.0,0.00043835,120]
[393045579,1762242260799,240.781074,0.00043835,120]
[393045582,1762242263588,500.0,0.00043835,120]
[393045583,1762242263715,500.0,0.00043835,120]
[393045584,1762242266469,500.0,0.00043835,120]
[393045585,1762242267716,500.0,0.00043835,120]
[393045586,1762242268783,500.0,0.00043835,30]
[393045587,1762242269332,500.0,0.00043835,120]
[393045588,1762242269465,500.0,0.00043835,120]
[393045589,1762242270511,500.0,0.00043835,120]
[393045590,1762242271947,500.0,0.00043835,120]
[393045591,1762242273018,500.0,0.00043835,120]
[393045592,1762242273811,500.0,0.00043835,120]
[393045593,1762242275178,500.0,0.00043835,120]
[393045594,1762242275731,150.0,0.00043392,120]
[393045595,1762242276177,613.96,0.00043835,120]
[393045596,1762242277794,500.0,0.00043835,120]
[393045599,1762242279578,500.0,0.00043835,120]
[393045600,1762242279758,262.22545377,0.00043835,120]
[393045603,1762242280857,500.0,0.00043835,120]
[393045604,1762242281543,500.0,0.00043835,120]
[393045605,1762242285165,215.68068796,0.00043835,120]
[393045606,1762242285524,500.0,0.00043835,120]
[393045607,1762242288977,500.0,0.00043835,120]
[393045608,1762242290629,589.59,0.00043835,120]
[393045609,1762242291040,500.0,0.00043835,120]
[393045610,1762242292457,500.0,0.00043835,120]
[393045611,1762242294545,500.0,0.00043835,120]
[393045612,1762242294918,238.96,0.000356,30]
[393045613,1762242295232,238.96,0.000379,30]
[393045614,1762242295642,238.96,0.000401,30]
[393045615,1762242295943,500.0,0.00043835,120]
[393045616,1762242296170,536.13,0.00043835,120]
[393045617,1762242297977,500.0,0.00043835,120]
[393045632,1762242300483,458.13635972,0.00043835,120]
[393045634,1762242300553,500.0,0.00043835,120]
[393045651,1762242302589,500.0,0.00043835,120]
[393045656,1762242303320,500.0,0.00043835,120]
[393045665,1762242304523,513.12828656,0.00043835,120]
[393045672,1762242305262,649.76932238,0.00043835,120]
[393045687,1762242307069,168.9571692,0.00043835,120]
[393045703,1762242308975,500.0,0.00043835,120]
[393045707,1762242309404,501.25768846,0.00043835,120]
[393045716,1762242310360,604.97620965,0.00043835,120]
[393045718,1762242310513,500.0,0.00043835,120]
[393045720,1762242310650,500.0,0.00043835,120]
[393045727,1762242311466,500.0,0.00043835,120]
[393045729,1762242311541,500.0,0.00043835,120]
[393045731,1762242311631,500.0,0.00043835,120]
[393045740,1762242312783,500.0,0.00043835,120]
[393045748,1762242313810,500.0,0.00043835,120]
[393045757,1762242315041,520.1145117,0.00043835,120]
[393045759,1762242315182,500.0,0.00043835,120]
[393045772,1762242316569,500.0,0.00043835,120]
[393045780,1762242317474,500.0,0.00043835,120]
[393045793,1762242318883,524.61984018,0.00043835,120]
[393045794,1762242318951,502.36654493,0.00043835,120]
[393045797,1762242319082,500.0,0.00043835,120]
[393045810,1762242320746,1365.18,0.00043835,120]
[393045812,1762242320820,500.0,0.00043835,120]
[393045818,1762242321403,500.0,0.00043835,120]
[393045820,1762242321522,500.0,0.00043835,120]
[393045832,1762242322922,500.0,0.00043835,120]
[393045845,1762242324393,500.0,0.00043835,120]
[393045851,1762242325110,1000.0,0.00036,36]
[393045855,1762242325654,500.0,0.00043835,120]
[393045861,1762242326283,516.66297679,0.00043835,120]
[393045863,1762242326452,500.0,0.00043835,120]
[393045870,1762242327195,500.0,0.00043835,120]
[393045872,1762242327342,503.40647036,0.00043835,120]
[393045881,1762242328245,500.0,0.00043835,120]
[393045890,1762242329270,161.0,0.00043708,120]
[393045896,1762242329858,500.0,0.00043835,60]
[393045900,1762242330223,500.0,0.00043835,120]
[393045901,1762242330320,500.0,0.00043835,120]
[393045904,1762242330567,500.0,0.00043835,120]
[393045911,1762242331225,641.1257581,0.00043835,120]
[393045950,1762242335807,511.26548338,0.00043835,120]
[393045957,1762242336548,683.88,0.00043835,120]
[393045962,1762242337275,500.0,0.00043835,120]
[393045982,1762242339585,503.87660903,0.00043835,120]
[393045986,1762242339937,500.0,0.00043835,120]
[393045989,1762242340128,525.84314934,0.00043835,120]
[393045991,1762242340184,500.0,0.00043835,120]
[393046004,1762242341613,500.0,0.00043835,120]
[393046009,1762242342057,500.0,0.00043835,120]
[393046014,1762242342542,500.0,0.00043835,120]